bitfinex-derivatives/quotes_BTCF0:USTF0_20250527
["timestamp","ask_amount","ask_price","bid_price","bid_amount"]
[1748351566697,0.66686,110410.0,110400.0,1.00903175]
[1748351567288,1.1579299,110410.0,110400.0,0.83611807]
[1748351567590,0.8479299,110410.0,110400.0,0.85611807]
[1748351567789,0.9009299,110410.0,110400.0,0.85611807]
[1748351568293,1.1218499,110410.0,110400.0,0.07033302]
[1748351568494,1.5018499,110410.0,110400.0,0.47113302]
[1748351568794,1.1193699,110410.0,110400.0,0.47113302]
[1748351568993,1.1193699,110410.0,110400.0,0.50113302]
[1748351569493,1.1193699,110410.0,110400.0,0.43113302]
[1748351569692,0.0503,110410.0,110400.0,0.67221932]
[1748351569895,0.88901182,110410.0,110400.0,0.67221932]
[1748351570098,0.88901182,110410.0,110400.0,0.06557653]
[1748351570099,2.04451464,110410.0,110400.0,0.06557653]
[1748351570288,1.12018172,110410.0,110400.0,0.0625025]
[1748351570485,0.59586172,110410.0,110400.0,0.1025025]
[1748351570793,0.59586172,110410.0,110400.0,0.04]
[1748351570794,1.48106172,110410.0,110400.0,0.04]
[1748351570999,1.94163772,110410.0,110400.0,0.09692607]
[1748351571295,0.1810863,110400.0,110390.0,0.00013629]
[1748351571495,1.6725263,110400.0,110390.0,0.15480123]
[1748351571697,2.3631103,110400.0,110390.0,0.15480123]
[1748351571888,2.3531103,110400.0,110390.0,0.10866173]
[1748351572195,2.3531103,110400.0,110390.0,0.1436889]
[1748351572196,2.3931103,110400.0,110390.0,0.1436889]
[1748351572496,0.1811027,110390.0,110380.0,0.00836818]
[1748351572695,1.78923562,110390.0,110380.0,8e-08]
[1748351572895,0.1811191,110380.0,110370.0,0.00013629]
[1748351573099,0.9249191,110380.0,110370.0,0.00013629]
[1748351573291,1.0155191,110380.0,110370.0,0.00013629]
[1748351573606,1.0155191,110380.0,110370.0,9e-08]
[1748351574190,0.2341191,110380.0,110370.0,9e-08]
[1748351574387,1.2986791,110380.0,110370.0,9e-08]
[1748351574598,0.9386791,110380.0,110370.0,9e-08]
[1748351574902,0.7947191,110380.0,110370.0,9e-08]
[1748351575198,0.8484991,110380.0,110370.0,0.05100009]
[1748351575396,0.8987991,110380.0,110370.0,0.05100009]
[1748351575597,0.8989191,110380.0,110370.0,0.07100009]
[1748351576299,0.2854391,110380.0,110370.0,0.48293587]
[1748351576497,0.2351391,110380.0,110370.0,0.48293587]
[1748351576799,0.09068369,110400.0,110370.0,0.71573355]
[1748351577001,0.8852595,110390.0,110380.0,0.13007442]
[1748351577299,0.04540869,110400.0,110380.0,1.01321183]
[1748351577300,0.00025629,110400.0,110380.0,1.01321183]
[1748351577488,0.00025629,110400.0,110390.0,0.49049572]
[1748351577690,0.61381629,110400.0,110390.0,0.88219044]
[1748351577886,0.61393629,110400.0,110390.0,0.88219044]
[1748351578089,0.61337629,110400.0,110390.0,1.06329324]
[1748351578491,0.00025629,110400.0,110390.0,0.88219044]
[1748351578691,0.61337629,110400.0,110390.0,1.02114012]
[1748351578900,0.00025629,110400.0,110390.0,0.96809303]
[1748351579196,0.00025629,110400.0,110390.0,0.87750903]
[1748351579506,0.61305629,110400.0,110390.0,0.982772]
[1748351579795,0.00013629,110400.0,110390.0,0.982772]
[1748351579997,0.61233629,110400.0,110390.0,1.06002151]
[1748351580297,0.61627182,110410.0,110400.0,0.1810864]
[1748351580509,0.00439182,110410.0,110400.0,1.05879552]
[1748351580691,0.61212,110420.0,110400.0,0.96420652]
[1748351580888,1.2624179,110430.0,110410.0,0.6392366]
[1748351581089,1.02748,110430.0,110420.0,0.48107921]
[1748351581394,1.36748,110430.0,110420.0,0.8039536]
[1748351581598,1.63956,110430.0,110420.0,0.90795255]
[1748351581897,1.63968,110430.0,110420.0,1.05800528]
[1748351582097,1.70968,110430.0,110420.0,1.05800528]
[1748351582303,1.70968,110430.0,110420.0,0.86553347]
[1748351582506,0.1811572,110430.0,110420.0,1.04658707]
[1748351582697,0.00012,110430.0,110420.0,1.04658707]
[1748351583002,0.00012,110430.0,110420.0,1.04651782]
[1748351583192,0.0001362,110440.0,110420.0,0.95602422]
[1748351583388,0.0001362,110440.0,110430.0,0.82633665]
[1748351583605,0.49785387,110450.0,110440.0,0.1810208]
[1748351583606,0.28177387,110450.0,110440.0,0.1810208]
[1748351583794,0.28177387,110450.0,110440.0,0.98795038]
[1748351584304,1.0726442,110470.0,110460.0,0.180988]
[1748351584305,0.1809781,110470.0,110460.0,0.180988]
[1748351584494,0.1809781,110470.0,110460.0,1.10466571]
[1748351584495,0.5109781,110470.0,110460.0,1.10466571]
[1748351584701,0.19704669,110480.0,110470.0,0.1809716]
[1748351584895,5.238e-05,110490.0,110480.0,0.1809552]
[1748351585095,0.19800259,110500.0,110490.0,0.1809389]
[1748351585096,0.11361505,110500.0,110490.0,0.1809389]
[1748351585399,0.11361505,110500.0,110490.0,1.85288304]
[1748351585594,0.2491,110510.0,110500.0,0.1809225]
[1748351585789,0.22576651,110570.0,110550.0,0.04521]
[1748351585998,0.00737252,110580.0,110570.0,0.180808]
[1748351586198,0.10786413,110600.0,110580.0,0.0451964]
[1748351586401,0.1807753,110590.0,110580.0,0.00013567]
[1748351586593,0.3968553,110590.0,110580.0,0.03378501]
[1748351586797,0.180808,110570.0,110560.0,0.3608]
[1748351587096,0.3164768,110550.0,110540.0,0.3608]
[1748351587294,0.180857,110540.0,110530.0,0.3608]
[1748351587498,0.180857,110540.0,110530.0,0.4408]
[1748351587499,0.400857,110540.0,110530.0,0.4408]
[1748351587803,0.00013359,110550.0,110530.0,0.781268]
[1748351588000,0.18097689,110550.0,110540.0,0.3608]
[1748351588303,0.16013359,110550.0,110540.0,0.7216571]
[1748351588521,0.16025359,110550.0,110540.0,1.0621171]
[1748351588815,0.23097429,110550.0,110540.0,0.88126]
[1748351588991,0.18109429,110550.0,110540.0,0.63126]
[1748351589190,0.69693429,110550.0,110540.0,0.18]
[1748351589596,0.99483937,110550.0,110540.0,0.18]
[1748351589794,1.35326681,110550.0,110540.0,0.18]
[1748351589996,1.36301189,110550.0,110540.0,0.18]
[1748351590208,1.00221189,110550.0,110540.0,0.18]
[1748351590599,1.36301189,110550.0,110540.0,0.18]
[1748351590997,1.36301189,110550.0,110540.0,0.5408]
[1748351590998,0.40725359,110550.0,110540.0,0.5408]
[1748351591295,0.10713359,110550.0,110540.0,0.84567991]
[1748351591496,0.10725359,110550.0,110540.0,0.84567991]
[1748351591694,0.00013359,110550.0,110540.0,1.0621171]
[1748351591900,0.00013359,110550.0,110540.0,0.63126]
[1748351591901,0.14013359,110550.0,110540.0,0.63126]
[1748351592100,0.14013359,110550.0,110540.0,0.8121171]
[1748351592101,0.14025359,110550.0,110540.0,0.8121171]
[1748351592401,0.14025359,110550.0,110540.0,0.6647036]
[1748351592603,0.88443867,110550.0,110540.0,0.18]
[1748351592799,1.06547867,110550.0,110540.0,0.18]
[1748351593006,1.64365119,110550.0,110540.0,0.18]
[1748351593310,1.01283867,110550.0,110540.0,0.18]
[1748351593495,1.01283867,110550.0,110540.0,0.7216571]
[1748351593496,0.46125359,110550.0,110540.0,0.7216571]
[1748351593691,0.11113359,110550.0,110540.0,0.18]
[1748351593895,0.11113359,110550.0,110540.0,0.8121171]
[1748351594109,0.11113359,110550.0,110540.0,0.7216571]
[1748351594110,0.11125359,110550.0,110540.0,0.7216571]
[1748351594292,0.11125359,110550.0,110540.0,0.8455607]
[1748351594293,0.00025359,110550.0,110540.0,0.8455607]
[1748351594493,0.00025359,110550.0,110540.0,0.8121171]
[1748351594695,0.11125359,110550.0,110540.0,0.8121171]
[1748351595096,0.85755867,110550.0,110540.0,0.5408]
[1748351595296,1.03871867,110550.0,110540.0,0.721657]
[1748351595508,1.19859867,110550.0,110540.0,0.721657]
[1748351595694,0.3608,110590.0,110580.0,0.1807916]
[1748351595898,0.13145867,110590.0,110580.0,0.8415916]
[1748351596099,0.10740688,110600.0,110590.0,0.1807753]
[1748351596411,0.04453978,110600.0,110590.0,0.8415753]
[1748351596601,0.20973978,110600.0,110590.0,0.8415753]
[1748351596802,0.20973978,110600.0,110590.0,0.6608]
[1748351597007,0.15515978,110600.0,110590.0,0.8415753]
[1748351597310,0.25465978,110600.0,110590.0,0.7015753]
[1748351597499,0.23849097,110600.0,110590.0,0.8315753]
[1748351597700,0.15503978,110600.0,110590.0,0.8315753]
[1748351597917,0.15503978,110600.0,110590.0,0.6628319]
[1748351598097,0.15515978,110600.0,110590.0,0.6628319]
[1748351598411,0.55849097,110600.0,110590.0,0.6628319]
[1748351598597,1.18817097,110600.0,110590.0,0.4820566]
[1748351598801,0.90052504,110600.0,110590.0,0.8315756]
[1748351599311,1.14052504,110600.0,110590.0,0.29]
[1748351599508,1.50132504,110600.0,110590.0,0.29]
[1748351599704,1.14052504,110600.0,110590.0,0.29]
[1748351599903,1.14052504,110600.0,110590.0,0.6508]
[1748351600101,1.57778281,110600.0,110590.0,0.0377]
[1748351600409,0.30195927,110580.0,110560.0,0.2660279]
[1748351600612,0.63068,110570.0,110560.0,0.33]
[1748351600799,1.39743867,110570.0,110560.0,0.5108246]
[1748351601000,1.58412724,110570.0,110560.0,0.33]
[1748351601211,1.88582851,110570.0,110560.0,0.12]
[1748351601409,1.93103181,110570.0,110560.0,0.12]
[1748351601712,1.58404724,110570.0,110560.0,0.12]
[1748351601913,1.22324724,110570.0,110560.0,0.12]
[1748351602104,1.84054581,110570.0,110560.0,0.12]
[1748351602424,1.84054581,110570.0,110520.0,0.40737755]
[1748351602425,0.1808737,110530.0,110520.0,0.00135715]
[1748351602617,0.1808737,110530.0,110500.0,0.4622644]
[1748351602618,0.1809064,110510.0,110500.0,0.10135734]
[1748351602803,0.95766507,110510.0,110500.0,0.30135734]
[1748351603115,0.07898924,110510.0,110500.0,0.84308014]
[1748351603324,0.07595867,110510.0,110500.0,0.84308014]
[1748351603527,0.00013567,110520.0,110510.0,0.1809064]
[1748351603705,0.07609434,110520.0,110510.0,0.4909064]
[1748351604020,0.31013567,110520.0,110510.0,0.8517064]
[1748351604318,0.11013567,110520.0,110510.0,0.9586064]
[1748351604616,0.00013567,110520.0,110510.0,0.9586064]
[1748351604822,0.00013567,110520.0,110510.0,0.99205]
[1748351605813,0.05390292,110520.0,110510.0,0.99205]
[1748351606312,0.05390292,110520.0,110510.0,0.723]
[1748351606313,0.13289216,110520.0,110510.0,0.723]
[1748351606613,1.48497216,110520.0,110510.0,0.31]
[1748351606918,1.59327216,110520.0,110510.0,0.49056384]
[1748351607116,1.59327216,110520.0,110510.0,0.30965734]
[1748351607306,1.23247216,110520.0,110510.0,0.49056384]
[1748351607614,1.22848159,110520.0,110510.0,0.52400744]
[1748351607820,0.36000292,110520.0,110510.0,0.52400744]
[1748351608008,0.12986159,110520.0,110510.0,0.30965734]
[1748351608210,0.22986159,110520.0,110510.0,0.67045734]
[1748351608409,0.30278159,110520.0,110510.0,0.30965734]
[1748351608717,1.25151216,110520.0,110510.0,0.52421735]
[1748351609620,1.25151216,110520.0,110510.0,0.34335232]
[1748351609621,1.43240226,110520.0,110510.0,0.34335232]
[1748351609803,1.25151216,110520.0,110510.0,0.52425882]
[1748351610009,1.43240226,110520.0,110510.0,0.30965734]
[1748351610215,1.79320226,110520.0,110510.0,0.30965734]
[1748351610719,1.73550513,110520.0,110510.0,0.30965734]
[1748351611509,0.12811503,110520.0,110510.0,0.85136384]
[1748351611710,0.12799503,110520.0,110510.0,0.95389236]
[1748351611920,0.12799503,110520.0,110510.0,0.59309236]
[1748351612218,0.07910924,110520.0,110510.0,0.64550079]
[1748351612419,0.68513567,110530.0,110520.0,0.1808901]
[1748351612619,0.76109434,110530.0,110520.0,0.59048439]
[1748351612809,1.47492491,110530.0,110520.0,0.35659429]
[1748351613010,1.11412491,110530.0,110520.0,0.593836]
[1748351613212,1.29499861,110530.0,110520.0,0.35659429]
[1748351613610,0.42609434,110530.0,110520.0,0.59404741]
[1748351613827,0.00025567,110530.0,110520.0,0.95140021]
[1748351614122,0.21325567,110530.0,110520.0,1.00640021]
[1748351614318,0.05313567,110530.0,110520.0,1.07367348]
[1748351614520,0.05325567,110530.0,110520.0,1.00640021]
[1748351614717,0.74173567,110530.0,110520.0,1.06252997]
[1748351615623,0.81769434,110530.0,110520.0,1.06252997]
[1748351616320,0.00025567,110530.0,110520.0,1.06252997]
[1748351616521,0.00025567,110530.0,110520.0,0.88163987]
[1748351616833,0.51239434,110530.0,110520.0,0.88163987]
[1748351617016,0.51554491,110530.0,110520.0,0.41434856]
[1748351617324,0.56684491,110530.0,110520.0,0.35741877]
[1748351617511,0.56684491,110530.0,110520.0,0.39560232]
[1748351618015,0.92764491,110530.0,110520.0,0.38429971]
[1748351618420,0.93687977,110530.0,110510.0,0.41747395]
[1748351618724,0.44115049,110520.0,110510.0,0.40443525]
[1748351618924,0.44115049,110520.0,110510.0,0.30013567]
[1748351618925,0.44035049,110520.0,110510.0,0.30013567]
[1748351619118,1.07714106,110520.0,110510.0,0.48104217]
[1748351619424,1.07714106,110520.0,110510.0,0.30013567]
[1748351619626,1.07726106,110520.0,110510.0,0.30013567]
[1748351619818,0.44350106,110520.0,110510.0,0.30013567]
[1748351620012,0.85734106,110520.0,110510.0,0.84184217]
[1748351620213,1.05734106,110520.0,110510.0,0.95654217]
[1748351620521,0.80734106,110520.0,110510.0,1.01309161]
[1748351620825,0.80734106,110520.0,110510.0,1.06084589]
[1748351620826,0.17350106,110520.0,110510.0,1.06084589]
[1748351621026,0.17350106,110520.0,110510.0,1.07213623]
[1748351621027,0.80415049,110520.0,110510.0,1.07213623]
[1748351621210,0.71403049,110520.0,110510.0,1.06120304]
[1748351621528,0.00451182,110520.0,110510.0,1.12900899]
[1748351621717,0.00439182,110520.0,110510.0,1.3176714]
[1748351621909,0.00451182,110520.0,110510.0,1.06117283]
[1748351622115,0.00451182,110520.0,110510.0,1.31763095]
[1748351622618,0.00451182,110520.0,110510.0,1.39658502]
[1748351622922,0.00013567,110530.0,110520.0,0.1808901]
[1748351622923,9.02e-05,110530.0,110520.0,0.1808901]
[1748351623112,9.02e-05,110530.0,110520.0,1.10568031]
[1748351623425,0.58844,110560.0,110540.0,0.2260645]
[1748351623618,0.71087867,110550.0,110540.0,0.99145471]
[1748351623823,0.71087867,110550.0,110540.0,1.11085471]
[1748351623824,0.82139867,110550.0,110540.0,1.11085471]
[1748351624033,0.82442924,110550.0,110540.0,1.11085471]
[1748351624208,0.82422924,110550.0,110540.0,0.8935764]
[1748351624414,0.71422924,110550.0,110540.0,0.4723764]
[1748351624615,1.09422924,110550.0,110540.0,0.41550154]
[1748351624821,1.45502924,110550.0,110540.0,0.41550154]
[1748351625121,1.26502924,110550.0,110540.0,0.41547671]
[1748351625324,1.26502924,110550.0,110540.0,0.41548245]
[1748351625824,1.26502924,110550.0,110540.0,0.95713985]
[1748351625825,0.26898924,110550.0,110540.0,0.95713985]
[1748351626019,0.90350924,110550.0,110540.0,0.71253985]
[1748351626331,0.90362924,110550.0,110540.0,1.07333985]
[1748351626820,0.90362924,110550.0,110540.0,0.71253985]
[1748351627025,0.90362924,110550.0,110540.0,1.07333985]
[1748351627026,0.90059867,110550.0,110540.0,1.07333985]
[1748351627211,0.90362924,110550.0,110540.0,1.07333985]
[1748351627418,0.90306924,110550.0,110540.0,1.07333985]
[1748351627717,0.90306924,110550.0,110540.0,0.71253985]
[1748351628324,0.71306924,110550.0,110540.0,0.84778458]
[1748351628526,0.71306924,110550.0,110540.0,0.70210168]
[1748351628527,0.80306924,110550.0,110540.0,0.70210168]
[1748351628727,0.98306924,110550.0,110540.0,0.40851925]
[1748351629223,0.98306924,110550.0,110540.0,0.34811925]
[1748351629224,1.16391024,110550.0,110540.0,0.34811925]
[1748351629430,1.22341024,110550.0,110540.0,0.09811925]
[1748351629618,0.35979073,110520.0,110510.0,0.6463768]
[1748351629815,0.35979073,110520.0,110510.0,1.17288224]
[1748351630024,0.35979073,110520.0,110510.0,1.25197378]
[1748351630234,0.35979073,110520.0,110510.0,1.33584248]
[1748351630426,0.35979073,110520.0,110510.0,1.33273658]
[1748351630724,0.35979073,110520.0,110510.0,1.18947969]
[1748351630924,0.41809073,110520.0,110510.0,1.21032434]
[1748351631316,1.07787997,110520.0,110510.0,0.69193606]
[1748351631619,1.25877007,110520.0,110510.0,0.45565584]
[1748351631935,1.25877007,110520.0,110510.0,0.44434598]
[1748351632116,1.07787997,110520.0,110510.0,0.45245089]
[1748351632427,1.07787997,110520.0,110510.0,0.39502749]
[1748351632826,1.71263997,110520.0,110510.0,0.39502749]
[1748351633018,0.7819213,110520.0,110510.0,0.57593399]
[1748351633223,1.13159997,110520.0,110510.0,0.63845354]
[1748351633426,1.13159997,110520.0,110510.0,0.4488]
[1748351633621,1.13147997,110520.0,110510.0,0.63408552]
[1748351633923,1.49239997,110520.0,110510.0,0.63408552]
[1748351634123,1.13159997,110520.0,110510.0,0.63408552]
[1748351634324,1.1285694,110520.0,110510.0,0.63408552]
[1748351634725,1.1285694,110520.0,110510.0,0.4488]
[1748351635628,1.07391214,110520.0,110510.0,0.4488]
[1748351635825,1.07391214,110520.0,110510.0,0.3885]
[1748351636333,1.07391214,110520.0,110510.0,0.33]
[1748351636334,1.78471214,110520.0,110510.0,0.33]
[1748351637034,1.84107341,110520.0,110510.0,0.33]
[1748351637332,1.78471214,110520.0,110510.0,0.33]
[1748351637520,1.84231214,110520.0,110510.0,0.33]
[1748351637721,1.20791214,110520.0,110510.0,0.33]
[1748351637930,1.84179214,110520.0,110510.0,0.5109065]
[1748351638132,1.84179214,110520.0,110510.0,0.33]
[1748351638725,1.65179214,110520.0,110510.0,0.33]
[1748351638935,1.88904351,110520.0,110510.0,0.33]
[1748351639231,1.85763341,110520.0,110510.0,0.33]
[1748351639729,2.03852401,110520.0,110510.0,0.33]
[1748351640134,1.85763341,110520.0,110510.0,0.33]
[1748351641233,0.95427341,110520.0,110510.0,0.33]
[1748351641432,1.54651341,110520.0,110510.0,0.33]
[1748351641635,1.10652417,110520.0,110510.0,0.510907]
[1748351641823,1.18236284,110520.0,110510.0,0.624307]
[1748351642140,2.60693497,110520.0,110510.0,0.32696943]
[1748351642432,1.28724284,110520.0,110510.0,0.16682837]
[1748351642640,1.28724284,110520.0,110510.0,0.29]
[1748351642641,2.18089655,110520.0,110510.0,0.29]
[1748351642819,2.23713097,110520.0,110510.0,0.34512798]
[1748351643023,2.23725097,110520.0,110510.0,0.34512798]
[1748351643224,2.23725097,110520.0,110510.0,0.29]
[1748351643828,2.23725097,110520.0,110510.0,0.34680451]
[1748351643829,2.41814167,110520.0,110510.0,0.34680451]
[1748351644133,2.41814167,110520.0,110510.0,0.29]
[1748351644334,0.180907,110510.0,110500.0,0.10013567]
[1748351644520,1.17321108,110510.0,110500.0,0.44013567]
[1748351644835,1.17321108,110510.0,110500.0,0.54129002]
[1748351645032,1.17321108,110510.0,110500.0,0.25129002]
[1748351645236,1.51370308,110510.0,110500.0,0.25129002]
[1748351645436,1.51370308,110510.0,110470.0,0.06622912]
[1748351645437,0.1809561,110480.0,110470.0,0.06622912]
[1748351645735,1.8861161,110480.0,110470.0,0.31582912]
[1748351646034,2.1719961,110480.0,110470.0,0.3780313]
[1748351646233,2.1719961,110480.0,110470.0,0.4575625]
[1748351646435,1.99104,110480.0,110470.0,0.4575625]
[1748351646830,1.99116,110480.0,110470.0,0.51208492]
[1748351647023,1.99116,110480.0,110470.0,0.4303]
[1748351647227,2.1721161,110480.0,110470.0,0.4303]
[1748351647640,1.9621161,110480.0,110470.0,0.3704]
[1748351648440,1.9621161,110480.0,110470.0,0.5513725]
[1748351648441,0.19552,110480.0,110470.0,0.5513725]
[1748351648735,0.05640891,110490.0,110480.0,0.1809562]
[1748351648930,0.05640891,110490.0,110480.0,0.74892707]
[1748351649132,0.3608,110510.0,110500.0,0.1809234]
[1748351649333,0.9944,110510.0,110500.0,0.5009234]
[1748351649632,0.99452,110510.0,110500.0,0.6177234]
[1748351649838,0.63312,110510.0,110500.0,0.62903543]
[1748351650030,0.63312,110510.0,110500.0,0.69703572]
[1748351650229,0.633,110510.0,110500.0,0.69703572]
[1748351650433,0.59565039,110520.0,110510.0,0.180907]
[1748351650731,0.99757039,110520.0,110510.0,1.01141817]
[1748351650938,0.99757039,110520.0,110510.0,1.000107]
[1748351651438,0.99757039,110520.0,110510.0,1.25705197]
[1748351651439,0.30675039,110520.0,110510.0,1.25705197]
[1748351651629,0.30675039,110520.0,110510.0,1.43821262]
[1748351651829,0.30663039,110520.0,110510.0,1.18564612]
[1748351652131,0.30675039,110520.0,110510.0,0.83488866]
[1748351652334,0.84844099,110520.0,110510.0,0.80175606]
[1748351652529,0.90554099,110520.0,110510.0,0.77904054]
[1748351652727,0.72465039,110520.0,110510.0,0.77904054]
[1748351653040,0.72465039,110520.0,110510.0,1.13984054]
[1748351653041,0.93999039,110520.0,110510.0,1.13984054]
[1748351653236,0.30675039,110520.0,110510.0,1.35190149]
[1748351653436,0.30675039,110520.0,110510.0,1.26836246]
[1748351653744,0.30663039,110520.0,110510.0,1.26836246]
[1748351654137,0.30675039,110520.0,110510.0,1.26836246]
[1748351654542,0.30675039,110520.0,110510.0,1.26836239]
[1748351654838,0.30675039,110520.0,110510.0,1.01141742]
[1748351655043,0.30675039,110520.0,110510.0,0.35131042]
[1748351655232,0.79215039,110520.0,110510.0,0.65301752]
[1748351655538,0.97304109,110520.0,110510.0,0.51287262]
[1748351655743,1.01304109,110520.0,110510.0,0.51287262]
[1748351655927,1.01304109,110520.0,110510.0,0.69377972]
[1748351655928,1.64600109,110520.0,110510.0,0.69377972]
[1748351656130,0.40885039,110520.0,110510.0,0.6417071]
[1748351656340,0.36873039,110520.0,110510.0,0.69379709]
[1748351656526,1.00193039,110520.0,110510.0,0.70510834]
[1748351656730,0.36873039,110520.0,110510.0,0.70510834]
[1748351656945,0.36873039,110520.0,110510.0,1.06590834]
[1748351656946,0.93979039,110520.0,110510.0,1.06590834]
[1748351657244,0.93991039,110520.0,110510.0,0.70510834]
[1748351657741,2.25998509,110520.0,110510.0,0.21340124]
[1748351657935,2.31968509,110520.0,110510.0,0.16131125]
[1748351658130,1.68652509,110520.0,110510.0,0.21805176]
[1748351658333,0.74465039,110520.0,110510.0,0.24895578]
[1748351658530,0.30675039,110520.0,110510.0,1.32237909]
[1748351658735,0.30663039,110520.0,110510.0,1.46221916]
[1748351658935,0.30675039,110520.0,110510.0,1.55731548]
[1748351659242,0.21435335,110520.0,110510.0,1.48239086]
[1748351659445,0.2534665,110540.0,110530.0,0.1808743]
[1748351659638,0.2534665,110540.0,110530.0,1.1820464]
[1748351659841,0.63388,110540.0,110530.0,1.30472444]
[1748351660043,0.50751986,110560.0,110550.0,0.1808416]
[1748351660237,0.2930252,110560.0,110550.0,0.57879373]
[1748351660542,0.0622,110560.0,110550.0,0.72299423]
[1748351660744,0.8756652,110560.0,110550.0,0.72299423]
[1748351660943,1.05524,110560.0,110550.0,0.72299423]
[1748351661148,0.42312,110560.0,110550.0,0.72299423]
[1748351661350,0.0622,110560.0,110550.0,0.72299423]
[1748351661545,1.26245176,110590.0,110550.0,1.06391695]
[1748351661546,0.4221,110590.0,110550.0,1.06391695]
[1748351661743,0.0622,110580.0,110570.0,0.74509065]
[1748351661935,0.0622,110580.0,110570.0,0.88975046]
[1748351661936,0.69368,110580.0,110570.0,0.88975046]
[1748351662447,1.05392,110580.0,110570.0,0.70894926]
[1748351662638,1.00324,110580.0,110570.0,0.70894926]
[1748351662843,0.74312,110580.0,110570.0,0.70894926]
[1748351663041,0.80094,110580.0,110570.0,0.61138554]
[1748351663247,0.41002,110580.0,110570.0,0.61138554]
[1748351663561,0.06232,110580.0,110570.0,0.97001824]
[1748351663846,0.69152,110580.0,110570.0,0.91911968]
[1748351664150,0.69164,110580.0,110570.0,0.91911968]
[1748351664346,0.69164,110580.0,110570.0,1.27991968]
[1748351664543,0.00012,110580.0,110570.0,1.33077206]
[1748351664849,0.7590601,110600.0,110590.0,0.1807765]
[1748351665043,1.3867801,110600.0,110590.0,0.61439439]
[1748351665243,1.4567801,110600.0,110590.0,0.61439439]
[1748351665546,0.8883,110600.0,110590.0,0.65695217]
[1748351665841,1.51474,110600.0,110590.0,0.71665217]
[1748351666047,0.5783,110600.0,110590.0,0.73288666]
[1748351666245,0.5783,110600.0,110590.0,0.80048008]
[1748351666438,1.20398,110600.0,110590.0,0.80048008]
[1748351666637,1.3947401,110600.0,110590.0,0.50990829]
[1748351666840,1.7047401,110600.0,110590.0,0.38261487]
[1748351667048,1.7047401,110600.0,110590.0,0.34]
[1748351667249,1.7047401,110600.0,110590.0,0.38506094]
[1748351667549,0.89842,110600.0,110590.0,0.56583744]
[1748351667754,0.8983,110600.0,110590.0,0.68016304]
[1748351667942,0.8983,110600.0,110590.0,0.6238331]
[1748351667943,0.55092,110600.0,110590.0,0.6238331]
[1748351668144,1.17476,110600.0,110590.0,0.6828331]
[1748351668353,1.23264,110600.0,110590.0,0.73910171]
[1748351668543,1.14276,110600.0,110590.0,0.73910171]
[1748351668737,0.57662,110600.0,110590.0,0.73910171]
[1748351669052,1.19966,110600.0,110590.0,0.68609179]
[1748351669555,0.21582,110600.0,110590.0,0.68609179]
[1748351669757,0.8379,110600.0,110590.0,0.68609179]
[1748351670241,0.8371,110600.0,110590.0,0.6410765]
[1748351670854,0.10012,110600.0,110590.0,0.6410765]
[1748351671153,1.7457801,110600.0,110590.0,0.43795606]
[1748351671342,1.8942789,110600.0,110590.0,0.34498159]
[1748351671538,1.8038947,110600.0,110590.0,0.34498159]
[1748351671754,1.8034947,110600.0,110590.0,0.34498159]
[1748351672344,1.1834947,110600.0,110590.0,0.34498159]
[1748351672545,1.8022547,110600.0,110590.0,0.34498159]
[1748351673047,0.1807765,110590.0,110580.0,0.04511726]
[1748351673246,0.9087765,110590.0,110580.0,0.00013567]
[1748351673550,0.9992045,110590.0,110580.0,0.00013567]
[1748351674156,1.6161645,110590.0,110580.0,0.00013567]
[1748351674760,0.2260036,110580.0,110560.0,0.00135663]
[1748351674955,1.09246,110570.0,110560.0,0.51218103]
[1748351675253,1.09246,110570.0,110560.0,0.33135663]
[1748351675254,1.72326,110570.0,110560.0,0.33135663]
[1748351675453,1.72242,110570.0,110560.0,0.51218213]
[1748351675655,1.72242,110570.0,110560.0,0.33135663]
[1748351675853,1.7221,110570.0,110560.0,0.51218213]
[1748351676053,1.9029092,110570.0,110560.0,0.33135663]
[1748351676278,1.7832,110570.0,110540.0,0.01909135]
[1748351676453,0.4060145,110540.0,110510.0,0.00582912]
[1748351676652,0.9477156,110520.0,110500.0,0.06209773]
[1748351676957,1.0368,110510.0,110500.0,0.40209773]
[1748351677159,2.67477507,110510.0,110500.0,0.03]
[1748351677361,0.1809228,110500.0,110490.0,0.02627574]
[1748351677564,1.19721611,110500.0,110490.0,0.01462774]
[1748351677759,1.19721611,110500.0,110490.0,0.02462774]
[1748351678145,1.21311196,110500.0,110490.0,0.02462774]
[1748351678348,1.55361196,110500.0,110490.0,0.01462774]
[1748351678661,0.180989,110460.0,110450.0,0.17194072]
[1748351678852,1.372709,110460.0,110450.0,0.69294612]
[1748351679053,1.430509,110460.0,110450.0,0.69294612]
[1748351679254,1.129709,110460.0,110450.0,0.51194072]
[1748351679451,1.187009,110460.0,110450.0,0.45744072]
[1748351679852,1.127009,110460.0,110450.0,0.45744072]
[1748351680052,1.486689,110460.0,110450.0,0.63844632]
[1748351680251,1.486689,110460.0,110450.0,0.65091128]
[1748351680463,1.506689,110460.0,110450.0,0.63844632]
[1748351680674,1.486689,110460.0,110450.0,0.63844632]
[1748351681160,1.3057,110460.0,110450.0,0.58844632]
[1748351681360,1.48669,110460.0,110450.0,0.64774632]
[1748351682260,1.12589,110460.0,110450.0,0.64774632]
[1748351682460,1.48669,110460.0,110450.0,0.64774632]
[1748351683057,0.49667547,110470.0,110460.0,0.18099]
[1748351683058,0.00013567,110470.0,110460.0,0.18099]
[1748351683261,0.70645567,110470.0,110460.0,0.61529]
[1748351683754,1.46822927,110470.0,110460.0,0.32]
[1748351684065,0.18099,110460.0,110450.0,0.00774072]
[1748351684262,1.99171,110460.0,110450.0,0.00774072]
[1748351684566,2.80979,110460.0,110450.0,0.29774072]
[1748351684860,2.80979,110460.0,110450.0,0.00774072]
[1748351684861,2.80991,110460.0,110450.0,0.00774072]
[1748351685961,2.80819,110460.0,110450.0,0.29774072]
[1748351686354,2.02412,110460.0,110450.0,0.53734712]
[1748351686557,2.02412,110460.0,110450.0,0.41244072]
[1748351686558,2.80787,110460.0,110450.0,0.41244072]
[1748351687063,2.62787,110460.0,110450.0,0.41244072]
[1748351687559,2.62711,110460.0,110450.0,0.41244072]
[1748351688064,2.62711,110460.0,110440.0,0.01145294]
[1748351688065,0.1810064,110450.0,110440.0,0.01145294]
[1748351688361,0.1810064,110450.0,110440.0,0.36145294]
[1748351688362,0.9943064,110450.0,110440.0,0.36145294]
[1748351688865,0.9943064,110450.0,110440.0,0.32145294]
[1748351690061,1.5938664,110450.0,110440.0,0.32145294]
[1748351692259,1.5938664,110450.0,110440.0,0.16145294]
[1748351693364,1.5938664,110450.0,110440.0,0.13145294]
[1748351693569,1.5938664,110450.0,110440.0,0.15145294]
[1748351693864,1.5897864,110450.0,110440.0,0.15145294]
[1748351694062,1.5897864,110450.0,110440.0,0.14145294]